[Event "Titled Tuesday Blitz August 23 Late 2022"]
[White "Mcconnell, Sullivan"]
[Black "Cruz, Cristhian"]
[WhiteFideId "30934885"]
[BlackFideId "3801969"]
[WhiteElo "2597"]
[BlackElo "2497"]
[Result "0-1"]
[Round "09"]
[TimeControl "180+1"]
[Date "2022.08.23"]
[WhiteClock "0:00:43"]
[BlackClock "0:00:15"]

1. e4 {[%clk 0:03:00]}  c6 {[%clk 0:02:59]} 2. Nc3 {[%clk 0:03:01]}  d5 {[%clk 0:02:58]} 3. d4 {[%clk 0:03:01]}  dxe4 {[%clk 0:02:56]} 4. Nge2 {[%clk 0:03:02]}  Nf6 {[%clk 0:02:52]} 5. Ng3 {[%clk 0:03:02]}  Bg4 {[%clk 0:02:51]} 6. Be2 {[%clk 0:03:02]}  Bxe2 {[%clk 0:02:50]} 7. Qxe2 {[%clk 0:03:03]}  e6 {[%clk 0:02:50]} 8. Bf4 {[%clk 0:03:03]}  Be7 {[%clk 0:02:47]} 9. Ngxe4 {[%clk 0:03:03]}  O-O {[%clk 0:02:48]} 10. O-O-O {[%clk 0:03:02]}  Nbd7 {[%clk 0:02:46]} 11. g4 {[%clk 0:03:03]}  Nxe4 {[%clk 0:02:44]} 12. Nxe4 {[%clk 0:03:03]}  Qa5 {[%clk 0:02:42]} 13. Kb1 {[%clk 0:03:03]}  Rfd8 {[%clk 0:02:37]} 14. h4 {[%clk 0:03:02]}  Nf6 {[%clk 0:02:26]} 15. f3 {[%clk 0:03:01]}  Rd7 {[%clk 0:02:09]} 16. h5 {[%clk 0:02:57]}  Rad8 {[%clk 0:02:07]} 17. c3 {[%clk 0:02:54]}  Qb5 {[%clk 0:01:57]} 18. Qg2 {[%clk 0:02:41]}  Nxe4 {[%clk 0:01:46]} 19. fxe4 {[%clk 0:02:41]}  c5 {[%clk 0:01:47]} 20. d5 {[%clk 0:02:41]}  c4 {[%clk 0:01:43]} 21. g5 {[%clk 0:02:38]}  exd5 {[%clk 0:01:41]} 22. g6 {[%clk 0:02:38]}  dxe4 {[%clk 0:01:30]} 23. gxf7+ {[%clk 0:02:36]}  Kxf7 {[%clk 0:01:25]} 24. Rdf1 {[%clk 0:02:27]}  Kg8 {[%clk 0:01:20]} 25. Qxe4 {[%clk 0:02:24]}  Qd5 {[%clk 0:01:16]} 26. Qe1 {[%clk 0:02:18]}  Bf6 {[%clk 0:01:15]} 27. h6 {[%clk 0:02:08]}  b5 {[%clk 0:01:02]} 28. hxg7 {[%clk 0:02:08]}  b4 {[%clk 0:01:02]} 29. Bc7 {[%clk 0:01:58]}  Qd3+ {[%clk 0:00:42]} 30. Ka1 {[%clk 0:01:57]}  bxc3 {[%clk 0:00:37]} 31. Qe6+ {[%clk 0:01:56]}  Rf7 {[%clk 0:00:33]} 32. a4 {[%clk 0:00:49]}  cxb2+ {[%clk 0:00:30]} 33. Ka2 {[%clk 0:00:50]}  Qb3+ {[%clk 0:00:23]} 34. Kb1 {[%clk 0:00:50]}  Qd3+ {[%clk 0:00:19]} 35. Ka2 {[%clk 0:00:50]}  b1=Q+ {[%clk 0:00:18]} 36. Rxb1 {[%clk 0:00:49]}  Qc2+ {[%clk 0:00:15]} 37. Ka3 {[%clk 0:00:43]}  Qc3+ {[%clk 0:00:15]} 0-1


[Site "https://www.chess.com"]

[Event "Titled Tuesday Blitz August 23 Late 2022"]
[White "Nakamura, Hikaru"]
[Black "Paravyan, David"]
[WhiteFideId "2016192"]
[BlackFideId "4194985"]
[WhiteElo "2850"]
[BlackElo "2569"]
[Result "1-0"]
[Round "09"]
[TimeControl "180+1"]
[Date "2022.08.23"]
[WhiteClock "0:00:42"]
[BlackClock "0:00:02"]

1. g3 {[%clk 0:03:00]}  e5 {[%clk 0:02:59]} 2. Bg2 {[%clk 0:03:00]}  d5 {[%clk 0:02:59]} 3. d3 {[%clk 0:03:00]}  Nf6 {[%clk 0:03:00]} 4. Bg5 {[%clk 0:03:00]}  Be7 {[%clk 0:03:00]} 5. Nc3 {[%clk 0:03:00]}  c6 {[%clk 0:03:00]} 6. e4 {[%clk 0:03:00]}  Be6 {[%clk 0:03:00]} 7. Nf3 {[%clk 0:02:57]}  Nbd7 {[%clk 0:03:00]} 8. O-O {[%clk 0:02:51]}  O-O {[%clk 0:03:00]} 9. exd5 {[%clk 0:02:47]}  cxd5 {[%clk 0:02:59]} 10. Re1 {[%clk 0:02:48]}  h6 {[%clk 0:02:57]} 11. Bxf6 {[%clk 0:02:42]}  Bxf6 {[%clk 0:02:58]} 12. Nd2 {[%clk 0:02:42]}  Nb6 {[%clk 0:02:41]} 13. a4 {[%clk 0:02:41]}  a5 {[%clk 0:02:23]} 14. Nb5 {[%clk 0:02:41]}  Bd7 {[%clk 0:02:19]} 15. c4 {[%clk 0:02:40]}  Bc6 {[%clk 0:02:15]} 16. Qc2 {[%clk 0:02:38]}  Rc8 {[%clk 0:02:06]} 17. Rad1 {[%clk 0:02:37]}  Qe7 {[%clk 0:01:59]} 18. b3 {[%clk 0:02:37]}  Qb4 {[%clk 0:01:54]} 19. Qb1 {[%clk 0:02:21]}  Rfd8 {[%clk 0:01:48]} 20. Nf1 {[%clk 0:02:21]}  e4 {[%clk 0:01:33]} 21. Na7 {[%clk 0:02:14]}  Ra8 {[%clk 0:01:30]} 22. Nxc6 {[%clk 0:02:09]}  bxc6 {[%clk 0:01:31]} 23. dxe4 {[%clk 0:02:06]}  Bc3 {[%clk 0:01:12]} 24. Re2 {[%clk 0:01:08]}  dxc4 {[%clk 0:01:11]} 25. Rxd8+ {[%clk 0:01:09]}  Rxd8 {[%clk 0:01:11]} 26. e5 {[%clk 0:01:10]}  cxb3 {[%clk 0:00:55]} 27. e6 {[%clk 0:01:10]}  fxe6 {[%clk 0:00:56]} 28. Qg6 {[%clk 0:01:04]}  Nd5 {[%clk 0:00:29]} 29. Rxe6 {[%clk 0:00:55]}  Nf6 {[%clk 0:00:16]} 30. Bh3 {[%clk 0:00:51]}  Qf8 {[%clk 0:00:05]} 31. Rxc6 {[%clk 0:00:50]}  Qe8 {[%clk 0:00:05]} 32. Qxe8+ {[%clk 0:00:50]}  Rxe8 {[%clk 0:00:02]} 33. Rxc3 {[%clk 0:00:51]}  b2 {[%clk 0:00:02]} 34. Rb3 {[%clk 0:00:49]}  Re2 {[%clk 0:00:02]} 35. Bf5 {[%clk 0:00:44]}  Nd5 {[%clk 0:00:02]} 36. Bd3 {[%clk 0:00:42]} 1-0


[Site "https://www.chess.com"]

[Event "Titled Tuesday Blitz August 23 Late 2022"]
[White "Naroditsky, Daniel"]
[Black "Bacrot, Etienne"]
[WhiteFideId "2026961"]
[BlackFideId "605506"]
[WhiteElo "2628"]
[BlackElo "2673"]
[Result "1-0"]
[Round "09"]
[TimeControl "180+1"]
[Date "2022.08.23"]
[WhiteClock "0:00:26"]
[BlackClock "0:00:13"]

1. e4 {[%clk 0:02:56]}  c5 {[%clk 0:02:59]} 2. Nf3 {[%clk 0:02:57]}  d6 {[%clk 0:02:59]} 3. Bb5+ {[%clk 0:02:57]}  Nd7 {[%clk 0:02:57]} 4. O-O {[%clk 0:02:57]}  a6 {[%clk 0:02:57]} 5. Bd3 {[%clk 0:02:57]}  Ngf6 {[%clk 0:02:56]} 6. Re1 {[%clk 0:02:58]}  e6 {[%clk 0:02:56]} 7. Bf1 {[%clk 0:02:57]}  Be7 {[%clk 0:02:56]} 8. c3 {[%clk 0:02:57]}  b5 {[%clk 0:02:48]} 9. d4 {[%clk 0:02:57]}  Bb7 {[%clk 0:02:48]} 10. Bd3 {[%clk 0:02:56]}  O-O {[%clk 0:02:40]} 11. Nbd2 {[%clk 0:02:57]}  cxd4 {[%clk 0:02:35]} 12. cxd4 {[%clk 0:02:57]}  Rc8 {[%clk 0:02:35]} 13. Nf1 {[%clk 0:02:57]}  e5 {[%clk 0:02:18]} 14. Ng3 {[%clk 0:02:51]}  Re8 {[%clk 0:02:18]} 15. a4 {[%clk 0:02:45]}  bxa4 {[%clk 0:02:08]} 16. Rxa4 {[%clk 0:02:34]}  exd4 {[%clk 0:02:08]} 17. Rxd4 {[%clk 0:02:27]}  Bf8 {[%clk 0:02:08]} 18. Nf5 {[%clk 0:02:25]}  Qb6 {[%clk 0:01:58]} 19. Bc4 {[%clk 0:01:59]}  d5 {[%clk 0:01:26]} 20. exd5 {[%clk 0:01:36]}  Rxe1+ {[%clk 0:01:25]} 21. Qxe1 {[%clk 0:01:36]}  g6 {[%clk 0:01:08]} 22. Nh6+ {[%clk 0:01:20]}  Kg7 {[%clk 0:00:50]} 23. Be3 {[%clk 0:00:51]}  Bc5 {[%clk 0:00:44]} 24. Nxf7 {[%clk 0:00:36]}  Kxf7 {[%clk 0:00:25]} 25. Bh6 {[%clk 0:00:27]}  Bxd4 {[%clk 0:00:22]} 26. d6+ {[%clk 0:00:26]}  Nd5 {[%clk 0:00:16]} 27. Ng5+ {[%clk 0:00:24]}  Kg8 {[%clk 0:00:13]} 28. Qe6+ {[%clk 0:00:24]}  Kh8 {[%clk 0:00:13]} 29. Nf7+ {[%clk 0:00:25]}  Kg8 {[%clk 0:00:14]} 30. Nd8+ {[%clk 0:00:26]}  Kh8 {[%clk 0:00:13]} 31. Qe8+ {[%clk 0:00:26]} 1-0


[Site "https://www.chess.com"]

[Event "Titled Tuesday Blitz August 23 Late 2022"]
[White "Nazaretyan, Tigran"]
[Black "Tristan, Leonardo"]
[WhiteFideId "24162345"]
[BlackFideId "113816"]
[WhiteElo "2183"]
[BlackElo "2404"]
[Result "1-0"]
[Round "09"]
[TimeControl "180+1"]
[Date "2022.08.23"]
[WhiteClock "0:00:21"]
[BlackClock "0:00:08"]

1. d4 {[%clk 0:02:43]}  d5 {[%clk 0:02:59]} 2. c4 {[%clk 0:02:43]}  e6 {[%clk 0:02:59]} 3. Nf3 {[%clk 0:02:43]}  Nf6 {[%clk 0:02:59]} 4. Nc3 {[%clk 0:02:41]}  a6 {[%clk 0:03:00]} 5. e3 {[%clk 0:02:40]}  b6 {[%clk 0:02:59]} 6. cxd5 {[%clk 0:02:33]}  exd5 {[%clk 0:02:59]} 7. Bd3 {[%clk 0:02:32]}  Bb7 {[%clk 0:02:58]} 8. O-O {[%clk 0:02:32]}  Bd6 {[%clk 0:02:58]} 9. Qc2 {[%clk 0:02:31]}  Nbd7 {[%clk 0:02:58]} 10. e4 {[%clk 0:02:31]}  dxe4 {[%clk 0:02:52]} 11. Nxe4 {[%clk 0:02:32]}  Be7 {[%clk 0:02:52]} 12. Bf4 {[%clk 0:02:28]}  Nd5 {[%clk 0:02:52]} 13. Bg3 {[%clk 0:02:18]}  Nb4 {[%clk 0:02:49]} 14. Qe2 {[%clk 0:02:11]}  Nxd3 {[%clk 0:02:50]} 15. Qxd3 {[%clk 0:02:07]}  O-O {[%clk 0:02:50]} 16. Rac1 {[%clk 0:02:06]}  c5 {[%clk 0:02:38]} 17. Rfd1 {[%clk 0:01:55]}  Nf6 {[%clk 0:02:11]} 18. Nxf6+ {[%clk 0:01:40]}  Bxf6 {[%clk 0:02:12]} 19. dxc5 {[%clk 0:01:39]}  Qxd3 {[%clk 0:02:13]} 20. Rxd3 {[%clk 0:01:38]}  Bxb2 {[%clk 0:02:14]} 21. Rb1 {[%clk 0:01:34]}  Be4 {[%clk 0:02:14]} 22. Rxb2 {[%clk 0:01:30]}  Bxd3 {[%clk 0:02:14]} 23. cxb6 {[%clk 0:01:30]}  Rac8 {[%clk 0:01:57]} 24. h4 {[%clk 0:01:27]}  Rc1+ {[%clk 0:01:01]} 25. Kh2 {[%clk 0:01:26]}  f5 {[%clk 0:00:55]} 26. b7 {[%clk 0:01:15]}  Bb5 {[%clk 0:00:34]} 27. b8=Q {[%clk 0:01:07]}  Rxb8 {[%clk 0:00:32]} 28. Bxb8 {[%clk 0:01:08]}  Rc4 {[%clk 0:00:33]} 29. Be5 {[%clk 0:01:02]}  Kf7 {[%clk 0:00:33]} 30. Nd4 {[%clk 0:01:01]}  Bd7 {[%clk 0:00:17]} 31. Rb7 {[%clk 0:00:58]}  Ke8 {[%clk 0:00:17]} 32. f4 {[%clk 0:00:54]}  Ra4 {[%clk 0:00:17]} 33. Rb2 {[%clk 0:00:43]}  g6 {[%clk 0:00:18]} 34. h5 {[%clk 0:00:42]}  Kf7 {[%clk 0:00:18]} 35. h6 {[%clk 0:00:41]}  Ra5 {[%clk 0:00:16]} 36. Kg3 {[%clk 0:00:41]}  g5 {[%clk 0:00:17]} 37. Rb7 {[%clk 0:00:38]}  Ke8 {[%clk 0:00:17]} 38. Rb8+ {[%clk 0:00:34]}  Kf7 {[%clk 0:00:17]} 39. Rh8 {[%clk 0:00:33]}  Kg6 {[%clk 0:00:17]} 40. Bg7 {[%clk 0:00:30]}  Ra3+ {[%clk 0:00:14]} 41. Kh2 {[%clk 0:00:27]}  g4 {[%clk 0:00:14]} 42. Rf8 {[%clk 0:00:25]}  Rxa2 {[%clk 0:00:09]} 43. Rf6+ {[%clk 0:00:24]}  Kh5 {[%clk 0:00:10]} 44. Nxf5 {[%clk 0:00:24]}  Bc6 {[%clk 0:00:10]} 45. Ng3+ {[%clk 0:00:21]}  Kh4 {[%clk 0:00:09]} 46. Rxc6 {[%clk 0:00:21]}  a5 {[%clk 0:00:09]} 47. Rc5 {[%clk 0:00:21]}  Rxg2+ {[%clk 0:00:08]} 48. Kxg2 {[%clk 0:00:21]} 1-0


[Site "https://www.chess.com"]

[Event "Titled Tuesday Blitz August 23 Late 2022"]
[White "Nozdrachev, Leonid"]
[Black "Tanenbaum, Zachary"]
[WhiteFideId "24113433"]
[BlackFideId "2060850"]
[WhiteElo "2100"]
[BlackElo "2175"]
[Result "0-1"]
[Round "09"]
[TimeControl "180+1"]
[Date "2022.08.23"]
[WhiteClock "0:00:17"]
[BlackClock "0:00:15"]

1. e4 {[%clk 0:03:00]}  e5 {[%clk 0:03:00]} 2. Nf3 {[%clk 0:02:59]}  Nc6 {[%clk 0:03:00]} 3. Bc4 {[%clk 0:02:58]}  Nf6 {[%clk 0:03:00]} 4. Nc3 {[%clk 0:02:57]}  Nxe4 {[%clk 0:03:00]} 5. O-O {[%clk 0:02:55]}  Nxc3 {[%clk 0:02:59]} 6. dxc3 {[%clk 0:02:56]}  Be7 {[%clk 0:02:57]} 7. Ng5 {[%clk 0:02:40]}  Bxg5 {[%clk 0:02:53]} 8. Qh5 {[%clk 0:02:39]}  d5 {[%clk 0:02:27]} 9. Bxg5 {[%clk 0:02:35]}  Qd6 {[%clk 0:02:27]} 10. Rad1 {[%clk 0:02:30]}  Be6 {[%clk 0:02:27]} 11. f4 {[%clk 0:02:29]}  Qc5+ {[%clk 0:02:25]} 12. Kh1 {[%clk 0:02:28]}  Qxc4 {[%clk 0:02:16]} 13. f5 {[%clk 0:02:27]}  Bxf5 {[%clk 0:01:13]} 14. Rxf5 {[%clk 0:02:24]}  g6 {[%clk 0:01:13]} 15. Rxe5+ {[%clk 0:01:41]}  Nxe5 {[%clk 0:01:13]} 16. Qh6 {[%clk 0:01:40]}  Ng4 {[%clk 0:00:49]} 17. Qg7 {[%clk 0:01:38]}  Nf2+ {[%clk 0:00:49]} 18. Kg1 {[%clk 0:01:36]}  Nxd1 {[%clk 0:00:50]} 19. h3 {[%clk 0:00:53]}  Qc5+ {[%clk 0:00:44]} 20. Kh1 {[%clk 0:00:52]}  Kd7 {[%clk 0:00:35]} 21. Qxf7+ {[%clk 0:00:50]}  Kc8 {[%clk 0:00:31]} 22. Bf4 {[%clk 0:00:39]}  b6 {[%clk 0:00:27]} 23. b4 {[%clk 0:00:36]}  Qc6 {[%clk 0:00:26]} 24. b5 {[%clk 0:00:35]}  Qc5 {[%clk 0:00:24]} 25. a4 {[%clk 0:00:26]}  Rf8 {[%clk 0:00:20]} 26. Qe6+ {[%clk 0:00:25]}  Kb7 {[%clk 0:00:20]} 27. a5 {[%clk 0:00:25]}  Qxb5 {[%clk 0:00:20]} 28. Bg3 {[%clk 0:00:21]}  Qxa5 {[%clk 0:00:17]} 29. c4 {[%clk 0:00:18]}  Qc5 {[%clk 0:00:16]} 30. cxd5 {[%clk 0:00:17]}  Rf1+ {[%clk 0:00:15]} 0-1


[Site "https://www.chess.com"]

[Event "Titled Tuesday Blitz August 23 Late 2022"]
[White "Papasimakopoulos, Alexandros"]
[Black "Levine, Joseph"]
[WhiteFideId "4244125"]
[BlackFideId "30940346"]
[WhiteElo "2357"]
[BlackElo "1810"]
[Result "1-0"]
[Round "09"]
[TimeControl "180+1"]
[Date "2022.08.23"]
[WhiteClock "0:01:19"]
[BlackClock "0:00:05"]

1. d4 {[%clk 0:02:57]}  d5 {[%clk 0:03:00]} 2. c4 {[%clk 0:02:57]}  e6 {[%clk 0:03:00]} 3. Nc3 {[%clk 0:02:57]}  Nf6 {[%clk 0:03:00]} 4. cxd5 {[%clk 0:02:57]}  exd5 {[%clk 0:03:01]} 5. Bg5 {[%clk 0:02:57]}  c6 {[%clk 0:03:01]} 6. e3 {[%clk 0:02:58]}  Bd6 {[%clk 0:03:02]} 7. Bd3 {[%clk 0:02:58]}  O-O {[%clk 0:03:02]} 8. Qc2 {[%clk 0:02:59]}  h6 {[%clk 0:03:02]} 9. Bh4 {[%clk 0:02:59]}  Re8 {[%clk 0:03:03]} 10. Bg3 {[%clk 0:02:53]}  Bg4 {[%clk 0:02:56]} 11. Nge2 {[%clk 0:02:50]}  Bxe2 {[%clk 0:02:47]} 12. Nxe2 {[%clk 0:02:49]}  Ne4 {[%clk 0:02:48]} 13. Bxd6 {[%clk 0:02:42]}  Nxd6 {[%clk 0:02:32]} 14. O-O {[%clk 0:02:41]}  Nd7 {[%clk 0:02:30]} 15. Nc3 {[%clk 0:02:41]}  Rc8 {[%clk 0:02:29]} 16. Rad1 {[%clk 0:02:39]}  Qg5 {[%clk 0:02:25]} 17. Qd2 {[%clk 0:02:32]}  f5 {[%clk 0:02:05]} 18. b4 {[%clk 0:02:13]}  Nf6 {[%clk 0:01:53]} 19. a4 {[%clk 0:02:09]}  Nfe4 {[%clk 0:01:52]} 20. Qc2 {[%clk 0:02:06]}  h5 {[%clk 0:01:07]} 21. Ne2 {[%clk 0:02:03]}  h4 {[%clk 0:01:04]} 22. h3 {[%clk 0:02:03]}  Rf8 {[%clk 0:00:51]} 23. Qb3 {[%clk 0:01:53]}  Rce8 {[%clk 0:00:34]} 24. b5 {[%clk 0:01:52]}  Nxf2 {[%clk 0:00:34]} 25. Rxf2 {[%clk 0:01:47]}  Rxe3 {[%clk 0:00:34]} 26. bxc6 {[%clk 0:01:45]}  bxc6 {[%clk 0:00:32]} 27. Qb4 {[%clk 0:01:40]}  Ne4 {[%clk 0:00:23]} 28. Bxe4 {[%clk 0:01:40]}  dxe4 {[%clk 0:00:24]} 29. Nf4 {[%clk 0:01:39]}  Rg3 {[%clk 0:00:13]} 30. Ne6 {[%clk 0:01:29]}  Rxg2+ {[%clk 0:00:05]} 31. Rxg2 {[%clk 0:01:25]}  Qe3+ {[%clk 0:00:05]} 32. Kh2 {[%clk 0:01:25]}  Rf7 {[%clk 0:00:04]} 33. Rxg7+ {[%clk 0:01:20]}  Kh8 {[%clk 0:00:05]} 34. Qb8+ {[%clk 0:01:19]} 1-0


[Site "https://www.chess.com"]

[Event "Titled Tuesday Blitz August 23 Late 2022"]
[White "Rustemov, Alexander"]
[Black "Al-Tarboush, Ward"]
[WhiteFideId "4119002"]
[BlackFideId "7601450"]
[WhiteElo "2748"]
[BlackElo "2234"]
[Result "1-0"]
[Round "09"]
[TimeControl "180+1"]
[Date "2022.08.23"]
[WhiteClock "0:01:42"]
[BlackClock "0:00:01"]

1. c4 {[%clk 0:03:00]}  c5 {[%clk 0:02:58]} 2. g3 {[%clk 0:03:01]}  Nc6 {[%clk 0:02:58]} 3. Bg2 {[%clk 0:03:01]}  g6 {[%clk 0:02:59]} 4. Nc3 {[%clk 0:03:01]}  Bg7 {[%clk 0:02:59]} 5. b3 {[%clk 0:03:01]}  e6 {[%clk 0:02:40]} 6. Bxc6 {[%clk 0:02:58]}  bxc6 {[%clk 0:02:33]} 7. Bb2 {[%clk 0:02:58]}  d5 {[%clk 0:02:23]} 8. d3 {[%clk 0:02:50]}  Ne7 {[%clk 0:02:15]} 9. Na4 {[%clk 0:02:49]}  Bxb2 {[%clk 0:02:01]} 10. Nxb2 {[%clk 0:02:50]}  O-O {[%clk 0:01:56]} 11. Nf3 {[%clk 0:02:46]}  Qd6 {[%clk 0:01:52]} 12. Qd2 {[%clk 0:02:23]}  e5 {[%clk 0:01:45]} 13. Qe3 {[%clk 0:02:22]}  f6 {[%clk 0:01:34]} 14. Na4 {[%clk 0:02:21]}  d4 {[%clk 0:01:25]} 15. Qc1 {[%clk 0:02:21]}  f5 {[%clk 0:01:14]} 16. Qh6 {[%clk 0:02:13]}  Rf7 {[%clk 0:00:54]} 17. h4 {[%clk 0:02:09]}  Rg7 {[%clk 0:00:43]} 18. h5 {[%clk 0:02:03]}  e4 {[%clk 0:00:43]} 19. Ng5 {[%clk 0:01:57]}  exd3 {[%clk 0:00:16]} 20. exd3 {[%clk 0:01:57]}  f4 {[%clk 0:00:08]} 21. hxg6 {[%clk 0:01:46]}  Nxg6 {[%clk 0:00:01]} 22. O-O-O {[%clk 0:01:42]} 1-0


[Site "https://www.chess.com"]